{"text_format":"1","workbook":"xlsx","n_sheets":2,"sheets":["ANEXO MEDIDAS IMPLANTADAS","tabla"],"not_rendered":{"charts":0,"images":1,"macros":1,"external_links":0,"defined_names":1,"comments":1,"pivot_tables":0},"unopened":[],"bounds":{"document_bytes":16777216,"sheet_cells":100000,"rows_first":2000,"rows_last":500,"rows_between":2000,"halvings":0,"cell_chars":16384,"cell_head_chars":4096},"cells_cut":0,"cells_raw":0,"read":"whole","date_system":"1900"}

{"sheet":"ANEXO MEDIDAS IMPLANTADAS","index":0,"n_rows":22,"n_cols":11,"rows_kept":22,"cut":false,"hidden":false,"merged":[[10,0,10,3],[10,4,10,6],[10,7,10,10],[4,0,4,10],[0,9,0,10],[5,0,5,10],[1,9,3,10],[9,0,9,10]]}
[]
[]
[]
[]
["COMUNICACIÓN DE REALIZACIÓN DE UNA AUDITORÍA ENERGÉTICA\nANEXO MEDIDAS IMPLANTADAS"]
[]
["Nombre Empresa","NIF"]
[]
[]
["Ahorros Energéticos Mejoras Auditoría Previa"]
["Información General",null,null,null,"Datos Económicos",null,null,"Datos Energéticos"]
["Nº Medida","Denominación Medida","Descripción Medida","Fecha Implantación","Inversión Total(€)","Denominación Programa Ayuda (Opcional)","Cuantía Recibida(€) (Opcional)","Ahorro energético (kWh/año)","Ahorro energético \nEn. eléctrica (kWh/año)","Ahorro energético \nEn. térmica (kWh/año)","Ahorro energético \nTransporte (kWh/año)"]
[1]
[2]
[3]
[4]
[5]
[6]
[7]
[8]
[9]
[10]

{"sheet":"tabla","index":1,"n_rows":26,"n_cols":77,"rows_kept":26,"cut":false,"hidden":true,"merged":[[0,59,0,60],[0,61,1,61],[0,62,0,65],[0,66,0,68],[0,0,0,14],[0,15,0,18],[0,21,0,32],[0,34,0,48],[0,49,0,55],[0,58,1,58]]}
["Datos de la persona que realiza la comunicación",null,null,null,null,null,null,null,null,null,null,null,null,null,null,"Datos del Auditor",null,null,null,null,null,"Datos empresa auditada",null,null,null,null,null,null,null,null,null,null,null,null,"Datos del resultado de la auditoria",null,null,null,null,null,null,null,null,null,null,null,null,null,null,"Datos Gobierno de Navarra",null,null,null,null,null,null,"Inspección","Comentarios","Estado comunicación","RAAE",null,"NOTAS","AUDITORIA",null,null,null,"PLAN INSPECCION",null,null,null,null,null,"dd","mm",null,"aaaa","concatenar"]
["Nombre","Primer Apellido","Segundo Apellido","DNI","Nombre Empresa","NIF","Direccion","Comunidad Autonoma","Provincia","Municipio","Codigo Postal","Telefono Contacto","Correo Electronico","Fecha Presentacion","Lugar Presentacion","Nombre Auditor","Primer Apellido Auditor","Segundo Apellido Auditor","DNI (opcional)","Titulacion Auditor","Tipo Auditor (Externo/Interno)","Expediente","Expediente raiz","Solicitar actualizacion","Comentarios actualizacion","Nombre Empresa/Instalacion Auditada","Fecha Auditoria","Ubicaciones multiples (SI/NO) (opcional)","Direccion Instalacion","Comunidad Autonoma","Provincia Instalacion","Municipio Instalacion","Codigo Postal Instalacion","CNAE","Ahorro energetico estimado (kWh/año)","Ahorro energetico estimado En. electrica (kWh/año)","Ahorro energetico estimado En. termica (kWh/año)","Ahorro energetico estimado Transporte (kWh/año)","Consumo Energetico (kWh/año)","Consumo Energetico En. electrica (kWh/año)","Consumo Energetico En. termica (kWh/año)","Consumo Energetico Transporte (kWh/año)","Emisiones CO2 (tCO2 e/año)","Inversion Estimada (euros)","% sobre Consumo Energetico Total (opcional)","Retorno Inversion (años con dos decimales)","Ahorros Energeticos mejoras auditoria previa (kWh/año)","Desglose de mejoras","Tiene un sistema de gestión certificado (SI/NO) (opcional)","Tamaño empresa","Actividad","Tipo auditoría","Fecha auditoría anterior","Instalaciones auditadas","Parte auditada específica","Titulación auditor","Estado inspección","Comentarios",null,"Remisión al Ministerio","Fecha de registro",null,"SOLICITADA","PRESENTADA","FECHA PRESENTACION","NOTAS",2018,2019,null,null,null,null,0,0,{"$error":"#N/A"},0,{"$f":"CONCATENATE(BU2,\"/\",BW2,\"/\",BX2)","v":{"$error":"#N/A"}}]
[null,null,null,null,null,null,null,null,null,null,null,null,null,null,null,null,null,null,null,null,null,null,null,null,null,null,null,null,null,null,null,null,null,null,null,null,null,null,null,null,null,null,null,null,null,null,{"$f":"'ANEXO MEDIDAS IMPLANTADAS'!H13","v":0},{"$f":"'ANEXO MEDIDAS IMPLANTADAS'!B13","v":0}]
[null,null,null,null,null,null,null,null,null,null,null,null,null,null,null,null,null,null,null,null,null,null,null,null,null,null,null,null,null,null,null,null,null,null,null,null,null,null,null,null,null,null,null,null,null,null,{"$f":"'ANEXO MEDIDAS IMPLANTADAS'!H14","v":0},{"$f":"'ANEXO MEDIDAS IMPLANTADAS'!B14","v":0}]
[null,null,null,null,null,null,null,null,null,null,null,null,null,null,null,null,null,null,null,null,null,null,null,null,null,null,null,null,null,null,null,null,null,null,null,null,null,null,null,null,null,null,null,null,null,null,{"$f":"'ANEXO MEDIDAS IMPLANTADAS'!H15","v":0},{"$f":"'ANEXO MEDIDAS IMPLANTADAS'!B15","v":0}]
[null,null,null,null,null,null,null,null,null,null,null,null,null,null,null,null,null,null,null,null,null,null,null,null,null,null,null,null,null,null,null,null,null,null,null,null,null,null,null,null,null,null,null,null,null,null,{"$f":"'ANEXO MEDIDAS IMPLANTADAS'!H16","v":0},{"$f":"'ANEXO MEDIDAS IMPLANTADAS'!B16","v":0}]
[null,null,null,null,null,null,null,null,null,null,null,null,null,null,null,null,null,null,null,null,null,null,null,null,null,null,null,null,null,null,null,null,null,null,null,null,null,null,null,null,null,null,null,null,null,null,{"$f":"'ANEXO MEDIDAS IMPLANTADAS'!H17","v":0},{"$f":"'ANEXO MEDIDAS IMPLANTADAS'!B17","v":0}]
[null,null,null,null,null,null,null,null,null,null,null,null,null,null,null,null,null,null,null,null,null,null,null,null,null,null,null,null,null,null,null,null,null,null,null,null,null,null,null,null,null,null,null,null,null,null,{"$f":"'ANEXO MEDIDAS IMPLANTADAS'!H18","v":0},{"$f":"'ANEXO MEDIDAS IMPLANTADAS'!B18","v":0}]
[null,null,null,null,null,null,null,null,null,null,null,null,null,null,null,null,null,null,null,null,null,null,null,null,null,null,null,null,null,null,null,null,null,null,null,null,null,null,null,null,null,null,null,null,null,null,{"$f":"'ANEXO MEDIDAS IMPLANTADAS'!H19","v":0},{"$f":"'ANEXO MEDIDAS IMPLANTADAS'!B19","v":0}]
[null,null,null,null,null,null,null,null,null,null,null,null,null,null,null,null,null,null,null,null,null,null,null,null,null,null,null,null,null,null,null,null,null,null,null,null,null,null,null,null,null,null,null,null,null,null,{"$f":"'ANEXO MEDIDAS IMPLANTADAS'!H20","v":0},{"$f":"'ANEXO MEDIDAS IMPLANTADAS'!B20","v":0}]
[null,null,null,null,null,null,null,null,null,null,null,null,null,null,null,null,null,null,null,null,null,null,null,null,null,null,null,null,null,null,null,null,null,null,null,null,null,null,null,null,null,null,null,null,null,null,{"$f":"'ANEXO MEDIDAS IMPLANTADAS'!H21","v":0},{"$f":"'ANEXO MEDIDAS IMPLANTADAS'!B21","v":0}]
[null,null,null,null,null,null,null,null,null,null,null,null,null,null,null,null,null,null,null,null,null,null,null,null,null,null,null,null,null,null,null,null,null,null,null,null,null,null,null,null,null,null,null,null,null,null,{"$f":"'ANEXO MEDIDAS IMPLANTADAS'!H22","v":0},{"$f":"'ANEXO MEDIDAS IMPLANTADAS'!B22","v":0}]
[null,null,null,null,null,null,null,null,null,null,null,null,null,null,null,null,null,null,null,null,null,null,null,null,null,null,null,null,null,null,null,null,null,null,null,null,null,null,null,null,null,null,null,null,null,null,{"$f":"'ANEXO MEDIDAS IMPLANTADAS'!H23","v":0},{"$f":"'ANEXO MEDIDAS IMPLANTADAS'!B23","v":0}]
[null,null,null,null,null,null,null,null,null,null,null,null,null,null,null,null,null,null,null,null,null,null,null,null,null,null,null,null,null,null,null,null,null,null,null,null,null,null,null,null,null,null,null,null,null,null,{"$f":"'ANEXO MEDIDAS IMPLANTADAS'!H24","v":0},{"$f":"'ANEXO MEDIDAS IMPLANTADAS'!B24","v":0}]
[null,null,null,null,null,null,null,null,null,null,null,null,null,null,null,null,null,null,null,null,null,null,null,null,null,null,null,null,null,null,null,null,null,null,null,null,null,null,null,null,null,null,null,null,null,null,{"$f":"'ANEXO MEDIDAS IMPLANTADAS'!H25","v":0},{"$f":"'ANEXO MEDIDAS IMPLANTADAS'!B25","v":0}]
[null,null,null,null,null,null,null,null,null,null,null,null,null,null,null,null,null,null,null,null,null,null,null,null,null,null,null,null,null,null,null,null,null,null,null,null,null,null,null,null,null,null,null,null,null,null,{"$f":"'ANEXO MEDIDAS IMPLANTADAS'!H26","v":0},{"$f":"'ANEXO MEDIDAS IMPLANTADAS'!B26","v":0}]
[null,null,null,null,null,null,null,null,null,null,null,null,null,null,null,null,null,null,null,null,null,null,null,null,null,null,null,null,null,null,null,null,null,null,null,null,null,null,null,null,null,null,null,null,null,null,{"$f":"'ANEXO MEDIDAS IMPLANTADAS'!H27","v":0},{"$f":"'ANEXO MEDIDAS IMPLANTADAS'!B27","v":0}]
[null,null,null,null,null,null,null,null,null,null,null,null,null,null,null,null,null,null,null,null,null,null,null,null,null,null,null,null,null,null,null,null,null,null,null,null,null,null,null,null,null,null,null,null,null,null,{"$f":"'ANEXO MEDIDAS IMPLANTADAS'!H28","v":0},{"$f":"'ANEXO MEDIDAS IMPLANTADAS'!B28","v":0}]
[null,null,null,null,null,null,null,null,null,null,null,null,null,null,null,null,null,null,null,null,null,null,null,null,null,null,null,null,null,null,null,null,null,null,null,null,null,null,null,null,null,null,null,null,null,null,{"$f":"'ANEXO MEDIDAS IMPLANTADAS'!H29","v":0},{"$f":"'ANEXO MEDIDAS IMPLANTADAS'!B29","v":0}]
[null,null,null,null,null,null,null,null,null,null,null,null,null,null,null,null,null,null,null,null,null,null,null,null,null,null,null,null,null,null,null,null,null,null,null,null,null,null,null,null,null,null,null,null,null,null,{"$f":"'ANEXO MEDIDAS IMPLANTADAS'!H30","v":0},{"$f":"'ANEXO MEDIDAS IMPLANTADAS'!B30","v":0}]
[null,null,null,null,null,null,null,null,null,null,null,null,null,null,null,null,null,null,null,null,null,null,null,null,null,null,null,null,null,null,null,null,null,null,null,null,null,null,null,null,null,null,null,null,null,null,{"$f":"'ANEXO MEDIDAS IMPLANTADAS'!H31","v":0},{"$f":"'ANEXO MEDIDAS IMPLANTADAS'!B31","v":0}]
[null,null,null,null,null,null,null,null,null,null,null,null,null,null,null,null,null,null,null,null,null,null,null,null,null,null,null,null,null,null,null,null,null,null,null,null,null,null,null,null,null,null,null,null,null,null,{"$f":"'ANEXO MEDIDAS IMPLANTADAS'!H32","v":0},{"$f":"'ANEXO MEDIDAS IMPLANTADAS'!B32","v":0}]
[null,null,null,null,null,null,null,null,null,null,null,null,null,null,null,null,null,null,null,null,null,null,null,null,null,null,null,null,null,null,null,null,null,null,null,null,null,null,null,null,null,null,null,null,null,null,{"$f":"'ANEXO MEDIDAS IMPLANTADAS'!H33","v":0},{"$f":"'ANEXO MEDIDAS IMPLANTADAS'!B33","v":0}]
[null,null,null,null,null,null,null,null,null,null,null,null,null,null,null,null,null,null,null,null,null,null,null,null,null,null,null,null,null,null,null,null,null,null,null,null,null,null,null,null,null,null,null,null,null,null,{"$f":"'ANEXO MEDIDAS IMPLANTADAS'!H34","v":0},{"$f":"'ANEXO MEDIDAS IMPLANTADAS'!B34","v":0}]
[null,null,null,null,null,null,null,null,null,null,null,null,null,null,null,null,null,null,null,null,null,null,null,null,null,null,null,null,null,null,null,null,null,null,null,null,null,null,null,null,null,null,null,null,null,null,{"$f":"'ANEXO MEDIDAS IMPLANTADAS'!H35","v":0},{"$f":"'ANEXO MEDIDAS IMPLANTADAS'!B35","v":0}]
[null,null,null,null,null,null,null,null,null,null,null,null,null,null,null,null,null,null,null,null,null,null,null,null,null,null,null,null,null,null,null,null,null,null,null,null,null,null,null,null,null,null,null,null,null,null,{"$f":"'ANEXO MEDIDAS IMPLANTADAS'!H36","v":0},{"$f":"'ANEXO MEDIDAS IMPLANTADAS'!B36","v":0}]